Cogmind - Beta 13 @@@ ROGUE MODE // 2024.05.27 @ 10:01:55 Player: Bace Troncons Result: Destroyed by QJ-ETZ(R) with Subdweller Laser Performance ------------- Evolutions (0) 0 Regions Visited (2) 400 Robots Destroyed (13) 65 Value Destroyed (392) 392 Prototype IDs (5) 100 Alien Tech Used (0) 0 Bonus (0) 0 TOTAL SCORE: 957 Bonus ------- None Cogmind --------- Core Integrity 0/250 Matter 300/300 Energy 250/250 System Corruption 0% Temperature Cool (6) Movement Treading (360) Ox2 Location -10/Subcaves Parts ------- > --- POWER (1) -------- Ion Engine > --- PROPULSION (2) --- Spiked Treads > --- UTILITY (2) ------ High-capacity Storage Unit > --- WEAPON (2) ------- Medium Laser Subdweller Laser > --- INVENTORY (20) --- Light Ion Engine Aluminum Leg Aluminum Leg Weight Redist. System Sensor Array Seismic Detector Core Shielding Weapon Shielding Subdweller Machine Gun Subdweller Shrapnel Launcher Peak State ------------ > --- POWER ------------ Ion Engine > --- PROPULSION ------- Light Treads Spiked Treads > --- UTILITY ---------- High-capacity Storage Unit Terrain Scanner > --- WEAPON ----------- Medium Laser Subdweller Machine Gun > --- INVENTORY -------- Ion Engine Aluminum Leg Aluminum Leg Weight Redist. System Sensor Array Seismic Detector Core Shielding Weapon Shielding [Rating: 9] Favorites ----------- Power Ion Engine Engine Ion Engine Propulsion Light Treads Treads Light Treads Utility Terrain Scanner Device Terrain Scanner Storage High-capacity Storage Unit Weapon Medium Laser Energy Gun Medium Laser Ballistic Gun Light Assault Rifle Launcher Grenade Launcher Build | -11 -10 -10 ------- Run | Yrd Mat Sub Slots Evolved . | . . . Power . | . . . Propulsion . | . . . Utility . | . . . Weapon . | . . . Parts Attached 24 | 6 9 9 Power 4 | 1 2 1 Engine 4 | 1 2 1 Core . | . . . Reactor . | . . . Propulsion 3 | 2 . 1 Treads 3 | 2 . 1 Leg . | . . . Wheel . | . . . Hover . | . . . Flight . | . . . Utility 3 | 1 2 . Device 1 | . 1 . Storage 2 | 1 1 . Processor . | . . . Hackware . | . . . Protection . | . . . Artifact . | . . . Weapon 14 | 2 5 7 Energy Gun 6 | 1 2 3 Energy Cannon . | . . . Ballistic Gun 6 | 1 2 3 Ballistic Cannon . | . . . Launcher 2 | . 1 1 Special Weapon . | . . . Impact Weapon . | . . . Slashing Weapon . | . . . Piercing Weapon . | . . . Special Melee Weapon . | . . . Unidentified Prototypes . | . . . Parts Lost 8 | . 1 7 Power 2 | . 1 1 Propulsion 2 | . . 2 Utility 1 | . . 1 Weapon 3 | . . 3 Highest Loss Streak 6 | . 1 6 To Critical Strikes . | . . . Average Slot Usage (%) 94 | . 98 87 Engine 13 | . 13 12 Treads 25 | . 28 22 Device 11 | . 13 8 Storage 14 | . 14 14 Energy Gun 11 | . 12 9 Ballistic Gun 15 | . 14 16 Naked Turns . | . . . Heaviest Build 53 | 14 49 53 Greatest Support 40 | 40 40 40 Greatest Overweight (x) 2 | 1 1 2 Average Overweight (x) . | . . 1 Largest Inventory Capacity 20 | 8 20 20 Average Capacity 16 | 7 15 20 Most Carried 10 | 5 9 10 Average Carried 8 | 2 7 9 Final Capacity 20 | 8 20 20 Final Carried 10 | 4 9 10 Class Distribution -------------------- 100% | Mutant Dominant Class ---------------- Mutant | -10/Materials Mutant | -10/Subcaves Resources | -11 -10 -10 ----------- Run | Yrd Mat Sub Matter Collected 594 | 260 197 137 Remotely . | . . . Salvage Created 341 | . 255 86 Parts 23 | . 17 6 Haulers Intercepted 1 | . 1 . Recyclers Shooed . | . . . Parts Field Recycled . | . . . Retrieved Matter . | . . . Parts Self-Destructed 13 | . . 13 Prevented . | . . . Kills | -11 -10 -10 ------- Run | Yrd Mat Sub Combat Hostiles Destroyed 12 | . 9 3 Guns 7 | . 4 3 AOE 5 | . 5 . Classes Destroyed 4 | . 3 1 Hauler 1 | . 1 . Swarmer 3 | . 3 . Grunt 6 | . 6 . Subdweller 3 | . . 3 Best Kill Streak 6 | . 6 2 Combat Bots Only 6 | . 6 2 Max Kills in Single Turn 3 | . 3 1 Gunslinging . | . . . Exploded 3 | . 3 . Melee . | . . . Uniques/NPCs Destroyed . | . . . Combat | -11 -10 -10 -------- Run | Yrd Mat Sub Hostile Shots Fired 99 | . 39 60 Missed 29 | . 11 18 Damage Taken 1275 | . 326 949 Core 251 | . 91 160 Absorbed by Shields . | . . . Core Remaining (%) 100 | 100 . . Volleys Fired 57 | . 34 23 Largest 2 | . 2 2 Hottest 80 | . 70 80 Shots Fired 110 | . 67 43 Gun 100 | . 61 39 Cannon . | . . . Launcher 10 | . 6 4 Special . | . . . Kinetic 55 | . 34 21 Thermal 41 | . 23 18 Explosive 10 | . 6 4 Electromagnetic 4 | . 4 . Robot Hit Streak 24 | . 6 24 Robot Miss Streak 3 | . 3 2 Penetration Max . | . . . Secondary Targets 1 | . . 1 Max Gunslinging Chain 1 | . . 1 Shots Hit Robots 68 | . 35 33 Core Hits 27 | . 20 7 Critical Kills . | . . . Critical Parts Destroyed . | . . . Critical Strikes 2 | . 1 1 Burn 2 | . 1 1 Melee Attacks . | . . . Impact . | . . . Slashing . | . . . Piercing . | . . . Sneak Attacks . | . . . Combat Hostiles . | . . . Follow-up Attacks . | . . . Damage Inflicted 1237 | . 739 498 Guns 796 | . 355 441 Cannons . | . . . Explosions 440 | . 383 57 Melee . | . . . Ramming 1 | . 1 . Kinetic 444 | . 139 305 Thermal 327 | . 191 136 Explosive 440 | . 383 57 Electromagnetic 25 | . 25 . Impact . | . . . Slashing . | . . . Piercing . | . . . Highest Corruption . | . . . Average Corruption . | . . . Corruption Purged . | . . . Corruption Blocked . | . . . Overload Shots . | . . . Overflow Damage 12 | . 12 . Projectiles . | . . . Explosions 12 | . 12 . Melee . | . . . Knockbacks . | . . . Impact . | . . . Kinetic . | . . . Secondary . | . . . Self-Inflicted Damage 45 | . 6 39 Shots 2 | . 1 1 Rammed 1 | . 1 . Targets Rammed 1 | . 1 . Kicked . | . . . Crushed . | . . . Highest Temperature 145 | . 145 . Average Temperature 42 | . 42 . Received Heat Transfer 402 | . 156 246 Siege Activations . | . . . Robots Corrupted . | . . . Combat Hostiles . | . . . Parts Fried . | . . . Impact Corruptions . | . . . Robots Melted . | . . . Combat Hostiles . | . . . Parts Melted 3 | . 3 . Heat Transferred 1110 | . 629 481 Parts Sabotaged . | . . . Parts Stolen . | . . . Parts Stripped . | . . . Power Chain Reactions . | . . . Alert | -11 -10 -10 ------- Run | Yrd Mat Sub Peak Influence 236 | . 236 . Initial . | . . . Average 44 | . 46 . Maximum Alert Level 1 | . 1 . Low Security (%) 92 | 100 91 . Level 1 7 | . 8 . Level 2 . | . . . Level 3 . | . . . Level 4 . | . . . Level 5 . | . . . High Security . | . . . Max Security . | . . . Squads Dispatched 1 | . 1 . Investigation . | . . . Extermination . | . . . Reinforcement 1 | . 1 . Assault . | . . . Garrison . | . . . Intercept . | . . . Searches Triggered . | . . . Construction Impeded . | . . . Haulers Reinforced . | . . . Active Scanning Responses . | . . . Cargo Convoy Interrupts . | . . . Stealth | -11 -10 -10 --------- Run | Yrd Mat Sub Distress Signals . | . . . Communications Jammed . | . . . Distress Signals . | . . . Times Spotted 23 | . 18 5 Peak Tracking Total 6 | . 6 3 Tactical Retreats 1 | . 1 . Traps | -11 -10 -10 ------- Run | Yrd Mat Sub Traps Triggered 1 | . 1 . Indirectly . | . . . Trap Hack Attempts . | . . . Triggered . | . . . Disarmed . | . . . Reprogrammed . | . . . Reused . | . . . Traps Extracted . | . . . Installed . | . . . Triggered . | . . . Machines | -11 -10 -10 ---------- Run | Yrd Mat Sub Machines Disabled 1 | . 1 . Max in Single Turn 1 | . 1 . Machines Repaired . | . . . Machines Dismantled . | . . . Machines Sabotaged . | . . . Overloaded Fab Kills . | . . . Hacking | -11 -10 -10 --------- Run | Yrd Mat Sub Machines Accessed 4 | . 4 . Terminals 4 | . 4 . Fabricators . | . . . Repair Stations . | . . . Recycling Units . | . . . Scanalyzers . | . . . Garrison Access . | . . . Total Hacks 8 | . 8 . Successful 6 | . 6 . Failed 2 | . 2 . Catastrophic . | . . . Database Lockouts . | . . . Manual 2 | . 2 . Terminals 8 | . 8 . Fabricators . | . . . Repair Stations . | . . . Recycling Units . | . . . Scanalyzers . | . . . Garrison Access . | . . . Terminal Hacks 6 | . 6 . Prototype ID Bank 4 | . 4 . Level Access Points 1 | . 1 . Locate Traps 1 | . 1 . Fabricator Hacks . | . . . Repair Station Hacks . | . . . Recycling Unit Hacks . | . . . Scanalyzer . | . . . Garrison Access Hacks . | . . . Unauthorized Hacks . | . . . Terminals . | . . . Fabricators . | . . . Repair Stations . | . . . Recycling Units . | . . . Scanalyzers . | . . . Garrison Access . | . . . Data Cores Recovered . | . . . Used . | . . . Hacking Detections 3 | . 3 . Full Trace Events . | . . . Feedback Events . | . . . Feedback Blocked . | . . . Robot Schematics Acquired . | . . . Robots Built . | . . . Authchips . | . . . Time . | . . . Total Robot Build Rating . | . . . Part Schematics Acquired . | . . . Parts Built . | . . . Authchips . | . . . Time . | . . . Total Part Build Rating . | . . . Parts Repaired . | . . . Time . | . . . Parts Recycled . | . . . Recycled Matter . | . . . Retrieved Matter . | . . . Retrieved Components . | . . . Parts Scanalyzed . | . . . Part Schematics Acquired . | . . . Parts Damaged . | . . . Bothacking | -11 -10 -10 ------------ Run | Yrd Mat Sub Used RIF Installer . | . . . Robots Hacked . | . . . Non-combat . | . . . Combat . | . . . Robot Hacks Applied . | . . . Relay Couplers Released . | . . . Fabnet Peak Effective % . | . . . Robots Rewired . | . . . Allies Hacked . | . . . Hacks Repelled . | . . . Allies | -11 -10 -10 -------- Run | Yrd Mat Sub Total Allies . | . . . Largest Group . | . . . Highest-Rated Group . | . . . Highest-Rated Ally . | . . . Total Orders . | . . . Ally Attacks . | . . . Total Damage . | . . . Kills . | . . . Allies Corrupted . | . . . Allies Melted . | . . . Intel | -11 -10 -10 ------- Run | Yrd Mat Sub Robot Analysis Total . | . . . Derelict Logs Recovered 2 | . . 2 Drone Launches . | . . . Drone Recoveries . | . . . Exploration | -11 -10 -10 ------------- Run | Yrd Mat Sub Turns Passed 2535 | 79 1456 1000 Spaces Moved 653 | 44 461 148 Core 5 | 5 . . Treads 648 | 39 461 148 Legs . | . . . Wheels . | . . . Hover . | . . . Flight . | . . . Fastest Speed 50 | 50 160 240 Average Speed 213 | 150 186 315 Slowest Speed 360 | 160 240 360 Overloaded Moves . | . . . Propulsion Burnouts . | . . . Robots Hopped . | . . . Cave-ins Triggered . | . . . Exploration Rate (%) 31 | 5 74 15 Regions Visited 2 Branch Regions 1 Pre-discovered Areas 1 | . . 1 Known Exits Taken . | . . . Unknown Exits Taken 2 | 1 1 . Scrap Searched 4 | . . 4 Spaces Dug . | . . . Terrain Destroyed 42 | . 18 24 Melee . | . . . Projectile . | . . . AOE 42 | . 18 24 Terrain Rammed . | . . . Walls Destroyed . | . . . Machines Disabled . | . . . Actions | -11 -10 -10 --------- Run | Yrd Mat Sub Total 1686 | 54 996 636 Wait 931 | . 479 452 Move 651 | 43 460 148 Hop . | . . . Pick Up 15 | 5 8 2 Fast Attach 12 | 5 3 4 Attach 6 | 1 2 3 Detach 3 | . 1 2 Swap 6 | . 4 2 Drop 4 | . 4 . Fire 57 | . 34 23 Melee . | . . . Ram . | . . . Kick . | . . . Crush 1 | . 1 . Escape Stasis . | . . . Rewire . | . . . Trap . | . . . Miscellaneous . | . . . Route ------- -11/Scrapyard -10/Materials (discovered 6 exits: *Mat x3 / [*Min x2] / [*Sub]) -10/Subcaves History --------- Turn | Location | Event 13 | -11/Scrapyard | Discovered new exit (range 16) 80 | -11/Scrapyard | Entered Materials 267 | -10/Materials | Discovered new exit (range 16) 318 | -10/Materials | Build established: Mutant 375 | -10/Materials | Identified exit to Materials 765 | -10/Materials | Discovered new exit (range 10) 1522 | -10/Materials | Discovered new exit (range 6) 1536 | -10/Materials | Entered Subcaves 1556 | -10/Subcaves | Learned Materials stockpile data 2079 | -10/Subcaves | Learned location of Zion (-7) 2111 | -10/Subcaves | Disturbed a concealed Subdweller 2133 | -10/Subcaves | Core integrity fell below 50% 2144 | -10/Subcaves | Disturbed a concealed Subdweller 2191 | -10/Subcaves | Lost 6 parts (1p2n1u2w) 2494 | -10/Subcaves | Core integrity fell below 20% 2536 | -10/Subcaves | Destroyed by QJ-ETZ(R) with Subdweller Laser Last Messages --------------- 02189_ Searching scrap... 02189_ Found Sub. Machine Gun. 02189_ Found 37 Matter. 02190_ Acquired 37 matter. 02197_ Acquired Sub. Machine Gun. 02202_ Searching scrap... 02202_ Found Sub. Beam Cannon. 02202_ Found Piercing Trap. 02202_ Found 23 Matter. 02203_ Acquired 18 matter. 02204_ Subatomizers dissect the Sub. Monowheel. 02307_ Acquired 10 matter. 02315_ Acquired Lgt. Ion Engine. 02508_ Sub. Machine Gun shoots sparks and powers down. 02512_ Sub. Machine Gun destroyed. 02514_ 3C-IKO(R) destroyed. 02520_ Acquired Sub. Laser. 02530_ Acquired 31 matter. Map ----- +----------------------------------------------------+ | ????????????????????????????????????????????? | | ????????????????????????????????????????????? | | ????????????????????????????????????????????? | | ????????????????????????????????????????????? | | ????????????????????????????????????????????? | | ????????????????????????????????????????????? | | ????????????????????????????????????????????? | | ????????????????????????????????????????????? | | ????????????????????????????????????????????? | | ????????????????????????????????????????????? | | ????????????????????????????????????????????? | | ????????????????????????????????????????????? | | ????????????????????????????????????????????? | | ????????????????????????????????????????????? | | ????????????????????????????????????????????? | | ????????????????????????????????????????????? | | ????????????????????????????????????????????? | | ????????????????????????????????????????????? | | ?????????????????#?##???????????????????????? | | ????????????????"#"# ???????????????????????? | | ????????????????"" ??????????????????????? | | ?????????????????? ?????????????????????? | | ???????????????????# ????????????????????? | | ????????????????????# ###?????????????????? | | ?????????????????#### #?????????????????? | | ?????????????????# @##????????????????? | | ?????????????????## ####%##???????????????? | | ???????????????????# ????#& ##??????????????? | | ???? ??????????# #???# ##?????????????? | | ?? "????#??### #??## #?????????????? | | ??# ????# " #### R #?????????????? | | ??# "??? """ ### #?????????????? | | ?## ""? " #?# #?????????????? | | ## "" ### #?????????????? | | # ]!""" ## #?????????????? | | =&"" ?# #?????????????? | | % #???????# #?????????????? | | "##?????# #?????????????? | | #"?????## #?????????????? | | ####### ##?????????????? | | #??????????????? | | ????# #??????????????? | | ????# ## ######??????????????? | | ????# ### #???##??????????????? | | ???## ##?## #### ##?????????????? | | ??## ##??# ## #?????????????? | | ??# ### & #??# #?????????????? | | ?## #?###%|##?# ### ##?????????????? | | ??## #??#"= #?###### #??????????????? | | ?### ##### #??## #??????????????? | +----------------------------------------------------+ Best States ------------- Heat Dissipation 25 Energy Generation 10 Energy Capacity 250 Matter Stores 300 Matter Capacity 300 Sight Range 16 Terrain Scan Range 14 Terrain Scan Density 10 Evasion (%) 40 Recoil Reduction 2 Item Schematics ----------------- None Robot Schematics ------------------ None Fabricated ------------ Nothing Alien Tech Used ----------------- None Achievements -------------- None Challenges ------------ None Game ------ Seed MomentumCoreStripper Manual? 0 Play Time 00:13:07 Cumulative 86.3 hours Start 2024.05.27 @ 09:46:52 End 2024.05.27 @ 10:01:55 Sessions 1 Manual Loads 0 Difficulty Rogue Special Mode None Game No. 140 Rogue 140 Adventurer 0 Explorer 0 Win Type - Total 1 Types 1/0/0/0/0/0/0/0/0 Lore% 40 Gallery% 44 Achievement% 32 Wizard Run 0 Options --------- Layout 1 ASCII 0 Keyboard 1 Movement Numpad Keybinds 0 Fullscreen 1 Font 24/Smallcaps Map View 50x35 Zoom Use 0% Tactical HUD 1 Map Filters NONE Filters NONE Steam 1 RUN: abb5b3ca-060c-4f0a-ba1c-e8cb5cb85342